[Event "*** Titled Tuesday Blitz"]
[Site "Chess.com"]
[Date "2019.07.02"]
[Round "6"]
[White "731291"]
[Black "sergeikim"]
[Result "1-0"]
[WhiteElo "2669"]
[BlackElo "2479"]
[TimeControl "180+2"]
[EndTime "14:21:26 PDT"]
[Termination "731291 won by resignation"]

1. e4 {[%clk 0:03:01.9]} 1... e5 {[%clk 0:03:00.7]} 2. Nf3 {[%clk 0:03:02.8]}
2... Nc6 {[%clk 0:03:01.6]} 3. Bb5 {[%clk 0:03:04.1]} 3... a6 {[%clk 0:03:02.6]}
4. Ba4 {[%clk 0:03:05.2]} 4... Nf6 {[%clk 0:03:03.7]} 5. O-O {[%clk 0:03:06.4]}
5... Be7 {[%clk 0:03:04.8]} 6. d3 {[%clk 0:03:05.9]} 6... b5 {[%clk 0:03:04.7]}
7. Bb3 {[%clk 0:03:07.1]} 7... O-O {[%clk 0:03:06.2]} 8. a3 {[%clk 0:03:08.4]}
8... d6 {[%clk 0:03:07]} 9. Nc3 {[%clk 0:03:09.6]} 9... Be6 {[%clk 0:03:07.8]}
10. Nd5 {[%clk 0:03:06.8]} 10... Nd7 {[%clk 0:03:08.4]} 11. c3 {[%clk
0:03:04.7]} 11... Bf6 {[%clk 0:03:08.8]} 12. Ba2 {[%clk 0:03:02.5]} 12... Ne7
{[%clk 0:03:07.3]} 13. Nxf6+ {[%clk 0:03:00]} 13... Nxf6 {[%clk 0:03:07.7]} 14.
Bxe6 {[%clk 0:02:54.3]} 14... fxe6 {[%clk 0:03:08.1]} 15. a4 {[%clk 0:02:56.2]}
15... h6 {[%clk 0:02:51.1]} 16. axb5 {[%clk 0:02:56]} 16... axb5 {[%clk
0:02:51.4]} 17. Rxa8 {[%clk 0:02:57.9]} 17... Qxa8 {[%clk 0:02:52]} 18. Qb3
{[%clk 0:02:59.5]} 18... Qc8 {[%clk 0:02:47.8]} 19. Qxb5 {[%clk 0:02:58.6]}
19... Ng6 {[%clk 0:02:48.7]} 20. Be3 {[%clk 0:02:55.1]} 20... Nh5 {[%clk
0:02:48.5]} 21. Nd2 {[%clk 0:02:51.1]} 21... Nhf4 {[%clk 0:02:45.2]} 22. g3
{[%clk 0:02:49.7]} 22... Nh5 {[%clk 0:02:26.4]} 23. d4 {[%clk 0:02:44]} 23...
Qd8 {[%clk 0:02:25.4]} 24. dxe5 {[%clk 0:02:42.9]} 24... Nxe5 {[%clk 0:02:20.3]}
25. f4 {[%clk 0:02:34.6]} 25... Ng4 {[%clk 0:02:13.7]} 26. Qxh5 {[%clk 0:02:34]}
26... Nxe3 {[%clk 0:02:14]} 27. Re1 {[%clk 0:02:33]} 27... Nc2 {[%clk
0:02:10.6]} 28. Rc1 {[%clk 0:02:34.3]} 28... Qb8 {[%clk 0:01:48.4]} 29. Rxc2
{[%clk 0:02:29.4]} 29... Qb6+ {[%clk 0:01:49.3]} 30. Kg2 {[%clk 0:02:26]} 30...
Ra8 {[%clk 0:01:50]} 31. Qg6 {[%clk 0:01:58.1]} 31... Ra1 {[%clk 0:01:46.3]} 32.
Qxe6+ {[%clk 0:01:57.4]} 32... Kh8 {[%clk 0:01:46.7]} 33. Nf3 {[%clk 0:01:57.5]}
33... Qe3 {[%clk 0:01:44.9]} 34. Qc8+ {[%clk 0:01:54.5]} 34... Kh7 {[%clk
0:01:44.9]} 35. Qf5+ {[%clk 0:01:56.4]} 35... Kh8 {[%clk 0:01:45.5]} 36. e5
{[%clk 0:01:50.2]} 36... dxe5 {[%clk 0:01:38.7]} 37. Qc8+ {[%clk 0:01:42.3]}
37... Kh7 {[%clk 0:01:38.4]} 38. Qf5+ {[%clk 0:01:44.2]} 38... Kh8 {[%clk
0:01:39.5]} 39. Qxe5 {[%clk 0:01:44.6]} 39... Qd3 {[%clk 0:01:39.7]} 40. Qe2
{[%clk 0:01:44.8]} 40... Qd5 {[%clk 0:01:39.7]} 41. Rd2 {[%clk 0:01:44.4]} 41...
Qb7 {[%clk 0:01:39.4]} 42. Qe8+ {[%clk 0:01:41.7]} 42... Kh7 {[%clk 0:01:39.6]}
43. Re2 {[%clk 0:01:43.4]} 43... Rb1 {[%clk 0:01:38.5]} 44. b4 {[%clk 0:01:41]}
44... Rb3 {[%clk 0:01:37.2]} 45. Qe4+ {[%clk 0:01:40.7]} 45... Qxe4 {[%clk
0:01:36.1]} 46. Rxe4 {[%clk 0:01:42.6]} 46... Rxc3 {[%clk 0:01:37.5]} 47. Ne5
{[%clk 0:01:43.6]} 47... c5 {[%clk 0:01:31.4]} 48. bxc5 {[%clk 0:01:38.9]} 48...
Rxc5 {[%clk 0:01:32]} 49. h4 {[%clk 0:01:40.8]} 49... h5 {[%clk 0:01:31.5]} 50.
Nf3 {[%clk 0:01:40.5]} 50... Rc2+ {[%clk 0:01:28.3]} 51. Kh3 {[%clk 0:01:40.4]}
51... Rc3 {[%clk 0:01:28.9]} 52. Ng5+ {[%clk 0:01:35]} 52... Kg6 {[%clk
0:01:27.9]} 53. Re6+ {[%clk 0:01:34.7]} 53... Kf5 {[%clk 0:01:28.5]} 54. Re5+
{[%clk 0:01:36.6]} 54... Kg6 {[%clk 0:01:29.2]} 55. Ne4 {[%clk 0:01:37.5]} 55...
Ra3 {[%clk 0:01:24.3]} 56. Rg5+ {[%clk 0:01:38.1]} 56... Kh6 {[%clk 0:01:25.5]}
57. Nd6 {[%clk 0:01:38.8]} 57... g6 {[%clk 0:01:24.5]} 58. f5 {[%clk 0:01:39.4]}
1-0

[Event "*** Titled Tuesday Blitz"]
[Site "Chess.com"]
[Date "2019.07.02"]
[Round "6"]
[White "tigra"]
[Black "Muisback26"]
[Result "0-1"]
[WhiteElo "2758"]
[BlackElo "2950"]
[TimeControl "180+2"]
[EndTime "14:21:28 PDT"]
[Termination "Muisback26 won on time"]

1. d4 {[%clk 0:03:01.9]} 1... d5 {[%clk 0:03:00.4]} 2. Nc3 {[%clk 0:03:02.1]}
2... Nf6 {[%clk 0:03:00.2]} 3. Bg5 {[%clk 0:03:02.5]} 3... Bf5 {[%clk
0:03:01.1]} 4. f3 {[%clk 0:03:02.4]} 4... Bg6 {[%clk 0:03:02]} 5. Nh3 {[%clk
0:03:01.2]} 5... Nbd7 {[%clk 0:03:02.5]} 6. Nf4 {[%clk 0:03:01.4]} 6... c6
{[%clk 0:03:03.1]} 7. Qd2 {[%clk 0:02:59.1]} 7... b5 {[%clk 0:02:54.6]} 8. a3
{[%clk 0:02:58.2]} 8... a5 {[%clk 0:02:55.1]} 9. e3 {[%clk 0:02:51.3]} 9... e5
{[%clk 0:02:41.1]} 10. dxe5 {[%clk 0:02:45.4]} 10... Nxe5 {[%clk 0:02:41.8]} 11.
Ncxd5 {[%clk 0:02:46.2]} 11... Bd6 {[%clk 0:01:57]} 12. Nxf6+ {[%clk 0:02:20]}
12... gxf6 {[%clk 0:01:57.7]} 13. Bh4 {[%clk 0:02:15.1]} 13... Qe7 {[%clk
0:01:58.7]} 14. O-O-O {[%clk 0:02:02.8]} 14... Bc5 {[%clk 0:01:57.3]} 15. Bxb5
{[%clk 0:01:55.9]} 15... O-O {[%clk 0:01:50.4]} 16. Qc3 {[%clk 0:01:49.2]} 16...
Bb4 {[%clk 0:01:25.3]} 17. axb4 {[%clk 0:01:49.3]} 17... axb4 {[%clk 0:01:26.5]}
18. Qb3 {[%clk 0:01:42.2]} 18... cxb5 {[%clk 0:01:21.5]} 19. Nd5 {[%clk
0:01:41.1]} 19... Qc5 {[%clk 0:01:22.9]} 20. Kd2 {[%clk 0:01:11.2]} 20... Rfd8
{[%clk 0:00:57.9]} 21. e4 {[%clk 0:01:03.1]} 21... Bxe4 {[%clk 0:00:42.2]} 22.
fxe4 {[%clk 0:00:56.5]} 22... Qd4+ {[%clk 0:00:43.4]} 23. Ke2 {[%clk 0:00:44.2]}
23... Qxe4+ {[%clk 0:00:44.5]} 24. Qe3 {[%clk 0:00:13.4]} 24... Qxc2+ {[%clk
0:00:31.3]} 25. Ke1 {[%clk 0:00:12.4]} 25... Rxd5 {[%clk 0:00:31.4]} 0-1

[Event "*** Titled Tuesday Blitz"]
[Site "Chess.com"]
[Date "2019.07.02"]
[Round "6"]
[White "severomorskij"]
[Black "JonahWillow"]
[Result "1-0"]
[WhiteElo "2859"]
[BlackElo "2713"]
[TimeControl "180+2"]
[EndTime "14:21:28 PDT"]
[Termination "severomorskij won on time"]

1. d4 {[%clk 0:03:01.9]} 1... Nf6 {[%clk 0:03:01.1]} 2. Bg5 {[%clk 0:03:02.1]}
2... e6 {[%clk 0:03:02]} 3. e4 {[%clk 0:03:02.5]} 3... h6 {[%clk 0:03:01.9]} 4.
Bxf6 {[%clk 0:03:03.5]} 4... Qxf6 {[%clk 0:03:03.8]} 5. c3 {[%clk 0:03:02.8]}
5... e5 {[%clk 0:03:04.9]} 6. Nf3 {[%clk 0:02:59]} 6... d6 {[%clk 0:03:04.5]} 7.
Na3 {[%clk 0:02:58.5]} 7... Be7 {[%clk 0:02:58.1]} 8. Qa4+ {[%clk 0:02:19.7]}
8... c6 {[%clk 0:02:30.2]} 9. Be2 {[%clk 0:01:58.7]} 9... O-O {[%clk 0:02:29.8]}
10. O-O {[%clk 0:01:59.3]} 10... Bg4 {[%clk 0:02:21.2]} 11. Qc2 {[%clk 0:01:49]}
11... Re8 {[%clk 0:01:19.5]} 12. Rad1 {[%clk 0:01:44.8]} 12... Bh5 {[%clk
0:01:14.7]} 13. Nc4 {[%clk 0:01:39]} 13... Bf8 {[%clk 0:01:07.3]} 14. dxe5
{[%clk 0:01:26.9]} 14... dxe5 {[%clk 0:01:05.1]} 15. Ncxe5 {[%clk 0:01:07.4]}
15... Rxe5 {[%clk 0:00:57.6]} 16. Nxe5 {[%clk 0:01:07.7]} 16... Qxe5 {[%clk
0:00:52.8]} 17. Bxh5 {[%clk 0:01:04.8]} 17... Qxh5 {[%clk 0:00:54]} 18. Rd8
{[%clk 0:01:05.4]} 18... Qe5 {[%clk 0:00:20.9]} 19. Rfd1 {[%clk 0:00:55.2]}
19... g6 {[%clk 0:00:21.2]} 20. Qd3 {[%clk 0:00:47.5]} 20... a5 {[%clk
0:00:15.4]} 21. Qd4 {[%clk 0:00:41.7]} 21... Qc7 {[%clk 0:00:04.9]} 22. h4
{[%clk 0:00:14.9]} 22... Ra6 {[%clk 0:00:04.1]} 23. Qf6 {[%clk 0:00:15]} 1-0

[Event "*** Titled Tuesday Blitz"]
[Site "Chess.com"]
[Date "2019.07.02"]
[Round "6"]
[White "Hrant_ChessMood"]
[Black "shnitez"]
[Result "1-0"]
[WhiteElo "2948"]
[BlackElo "2581"]
[TimeControl "180+2"]
[EndTime "14:21:28 PDT"]
[Termination "Hrant_ChessMood won on time"]

1. e4 {[%clk 0:03:01.9]} 1... e5 {[%clk 0:03:00.4]} 2. Nf3 {[%clk 0:03:02]} 2...
Nc6 {[%clk 0:03:01.3]} 3. Bc4 {[%clk 0:03:02]} 3... Bc5 {[%clk 0:03:01.7]} 4.
O-O {[%clk 0:03:01.5]} 4... Nf6 {[%clk 0:03:01.6]} 5. d3 {[%clk 0:03:03]} 5...
d6 {[%clk 0:02:55.6]} 6. c3 {[%clk 0:03:04.1]} 6... a6 {[%clk 0:02:53.9]} 7. a4
{[%clk 0:03:03.5]} 7... Ba7 {[%clk 0:02:53.9]} 8. Nbd2 {[%clk 0:03:02.6]} 8...
h6 {[%clk 0:02:52.9]} 9. Re1 {[%clk 0:03:01.5]} 9... O-O {[%clk 0:02:50.9]} 10.
Nf1 {[%clk 0:03:02.1]} 10... Ne7 {[%clk 0:02:49.3]} 11. Be3 {[%clk 0:03:01.2]}
11... Ng6 {[%clk 0:02:46.7]} 12. Bxa7 {[%clk 0:03:01.1]} 12... Rxa7 {[%clk
0:02:48.6]} 13. Ne3 {[%clk 0:03:01.1]} 13... Ra8 {[%clk 0:02:46.7]} 14. b4
{[%clk 0:02:58.1]} 14... Re8 {[%clk 0:02:40.4]} 15. Qc2 {[%clk 0:02:56.9]} 15...
Be6 {[%clk 0:02:40.3]} 16. Bxe6 {[%clk 0:02:49]} 16... Rxe6 {[%clk 0:02:42.2]}
17. c4 {[%clk 0:02:50.2]} 17... Re8 {[%clk 0:02:39.3]} 18. g3 {[%clk 0:02:49.6]}
18... Nf8 {[%clk 0:02:33.2]} 19. a5 {[%clk 0:02:48.2]} 19... c6 {[%clk
0:02:31.8]} 20. Rad1 {[%clk 0:02:42]} 20... Rc8 {[%clk 0:02:28.2]} 21. Nf5
{[%clk 0:02:33.2]} 21... c5 {[%clk 0:01:45.2]} 22. Qb2 {[%clk 0:02:19.6]} 22...
Ne6 {[%clk 0:01:41.2]} 23. Nd2 {[%clk 0:02:07.8]} 23... g6 {[%clk 0:01:33.8]}
24. Ne3 {[%clk 0:02:05.7]} 24... Re7 {[%clk 0:01:31.3]} 25. Kg2 {[%clk
0:02:01.6]} 25... Kg7 {[%clk 0:01:20.8]} 26. Rb1 {[%clk 0:02:00.2]} 26... h5
{[%clk 0:01:14.1]} 27. h4 {[%clk 0:01:59.8]} 27... Rec7 {[%clk 0:01:08.9]} 28.
Nf3 {[%clk 0:01:54.3]} 28... Re7 {[%clk 0:01:00.1]} 29. Red1 {[%clk 0:01:45.9]}
29... Rd7 {[%clk 0:00:59.2]} 30. bxc5 {[%clk 0:01:33.3]} 30... Rxc5 {[%clk
0:00:54.7]} 31. d4 {[%clk 0:01:12.8]} 31... exd4 {[%clk 0:00:50.1]} 32. Nxd4
{[%clk 0:01:14.7]} 32... Nxd4 {[%clk 0:00:49]} 33. Qxd4 {[%clk 0:01:16.6]} 33...
Kg8 {[%clk 0:00:32.6]} 34. Ra1 {[%clk 0:01:01.6]} 1-0

[Event "*** Titled Tuesday Blitz"]
[Site "Chess.com"]
[Date "2019.07.02"]
[Round "6"]
[White "Padenie_Zvezd"]
[Black "ChessWarrior7197"]
[Result "1-0"]
[WhiteElo "2727"]
[BlackElo "2829"]
[TimeControl "180+2"]
[EndTime "14:21:39 PDT"]
[Termination "Padenie_Zvezd won by resignation"]

1. d4 {[%clk 0:02:52.1]} 1... Nf6 {[%clk 0:02:59.8]} 2. c4 {[%clk 0:02:51.4]}
2... e6 {[%clk 0:03:00.1]} 3. Nf3 {[%clk 0:02:51.9]} 3... b6 {[%clk 0:03:00.5]}
4. g3 {[%clk 0:02:50.8]} 4... Bb7 {[%clk 0:03:01]} 5. Bg2 {[%clk 0:02:51.7]}
5... Be7 {[%clk 0:03:02.4]} 6. Bg5 {[%clk 0:02:49.6]} 6... O-O {[%clk
0:02:56.6]} 7. Nc3 {[%clk 0:02:49.7]} 7... Ne4 {[%clk 0:02:44.5]} 8. Bxe7 {[%clk
0:02:51.6]} 8... Qxe7 {[%clk 0:02:44.8]} 9. Qc2 {[%clk 0:02:48]} 9... f5 {[%clk
0:02:41.9]} 10. Nd2 {[%clk 0:02:42.9]} 10... Nc6 {[%clk 0:01:50.9]} 11. Ndxe4
{[%clk 0:02:27.5]} 11... fxe4 {[%clk 0:01:51.2]} 12. Bxe4 {[%clk 0:02:19.1]}
12... Nxd4 {[%clk 0:01:43]} 13. Qd3 {[%clk 0:02:08.2]} 13... Bxe4 {[%clk
0:01:43.2]} 14. Qxe4 {[%clk 0:02:10]} 14... Nf5 {[%clk 0:01:30.9]} 15. O-O-O
{[%clk 0:02:09.7]} 15... Nd6 {[%clk 0:01:31]} 16. Qd4 {[%clk 0:02:10.1]} 16...
Qf6 {[%clk 0:01:30.1]} 17. f4 {[%clk 0:02:07.2]} 17... Qxd4 {[%clk 0:01:27.1]}
18. Rxd4 {[%clk 0:02:09.1]} 18... Rae8 {[%clk 0:01:28.2]} 19. e4 {[%clk
0:02:06.8]} 19... e5 {[%clk 0:01:25.8]} 20. Rxd6 {[%clk 0:02:07.9]} 20... cxd6
{[%clk 0:01:25.7]} 21. f5 {[%clk 0:02:09.5]} 21... Rc8 {[%clk 0:01:20.5]} 22. b3
{[%clk 0:02:10]} 22... Rc6 {[%clk 0:01:04]} 23. g4 {[%clk 0:02:08.7]} 23... Kf7
{[%clk 0:00:58.4]} 24. Rd1 {[%clk 0:02:03.1]} 24... a6 {[%clk 0:00:54.4]} 25.
Kb2 {[%clk 0:02:03.1]} 25... Rb8 {[%clk 0:00:50.8]} 26. a4 {[%clk 0:02:02.3]}
26... a5 {[%clk 0:00:46.8]} 27. h4 {[%clk 0:01:57.1]} 27... h6 {[%clk
0:00:47.5]} 28. g5 {[%clk 0:01:45.9]} 28... hxg5 {[%clk 0:00:46.6]} 29. hxg5
{[%clk 0:01:47.8]} 29... Rh8 {[%clk 0:00:46.9]} 30. g6+ {[%clk 0:01:47.2]} 30...
Ke8 {[%clk 0:00:39.7]} 31. Nd5 {[%clk 0:01:48]} 31... Rh4 {[%clk 0:00:32.6]} 32.
Rg1 {[%clk 0:01:41]} 32... Kf8 {[%clk 0:00:32.1]} 33. f6 {[%clk 0:01:33.2]}
33... Rh6 {[%clk 0:00:20.3]} 34. Ne7 {[%clk 0:01:27.8]} 34... Rh2+ {[%clk
0:00:15.8]} 35. Ka3 {[%clk 0:01:27.3]} 35... Rc5 {[%clk 0:00:07.4]} 36. fxg7+
{[%clk 0:01:14]} 36... Kxg7 {[%clk 0:00:08]} 37. Nf5+ {[%clk 0:01:15.9]} 37...
Kg8 {[%clk 0:00:03.9]} 38. g7 {[%clk 0:01:17.8]} 38... Rc8 {[%clk 0:00:02.1]}
39. Ne7+ {[%clk 0:01:18.7]} 1-0

[Event "*** Titled Tuesday Blitz"]
[Site "Chess.com"]
[Date "2019.07.02"]
[Round "6"]
[White "Walter_White_Poland"]
[Black "Sajkochess"]
[Result "1-0"]
[WhiteElo "2298"]
[BlackElo "2247"]
[TimeControl "180+2"]
[EndTime "14:21:39 PDT"]
[Termination "Walter_White_Poland won by resignation"]

1. Nf3 {[%clk 0:03:01.9]} 1... Nf6 {[%clk 0:03:00.3]} 2. c4 {[%clk 0:03:02.5]}
2... e6 {[%clk 0:03:00.5]} 3. g3 {[%clk 0:03:02.7]} 3... d5 {[%clk 0:03:01]} 4.
Bg2 {[%clk 0:03:03.6]} 4... dxc4 {[%clk 0:03:01.6]} 5. Qa4+ {[%clk 0:03:03.6]}
5... Nbd7 {[%clk 0:03:01]} 6. Qxc4 {[%clk 0:03:02.4]} 6... a6 {[%clk 0:03:01.8]}
7. Qc2 {[%clk 0:02:59.5]} 7... b5 {[%clk 0:02:52]} 8. Ne5 {[%clk 0:02:56]} 8...
Nxe5 {[%clk 0:02:50.4]} 9. Bxa8 {[%clk 0:02:54.7]} 9... Be7 {[%clk 0:01:55.2]}
10. Bg2 {[%clk 0:02:51.9]} 10... O-O {[%clk 0:01:53.2]} 11. O-O {[%clk
0:02:52.2]} 11... c5 {[%clk 0:01:53.7]} 12. d3 {[%clk 0:02:52.7]} 12... Nd5
{[%clk 0:01:48.2]} 13. Nc3 {[%clk 0:02:51.6]} 13... Nb4 {[%clk 0:01:47]} 14. Qd1
{[%clk 0:02:50.8]} 14... Qb6 {[%clk 0:01:44.2]} 15. a4 {[%clk 0:02:46.4]} 15...
Rd8 {[%clk 0:01:39.5]} 16. axb5 {[%clk 0:02:47]} 16... axb5 {[%clk 0:01:39.3]}
17. Be3 {[%clk 0:02:44.3]} 17... Ng4 {[%clk 0:01:30.9]} 18. Bd2 {[%clk
0:02:23.9]} 18... c4 {[%clk 0:00:59.7]} 19. dxc4 {[%clk 0:02:17.5]} 19... bxc4
{[%clk 0:00:38.1]} 20. Qa4 {[%clk 0:02:09.4]} 20... Bd7 {[%clk 0:00:13.7]} 21.
Qa5 {[%clk 0:02:04.1]} 21... Bc5 {[%clk 0:00:11.6]} 22. Qxb6 {[%clk 0:01:57.8]}
22... Bxb6 {[%clk 0:00:13.5]} 23. Na4 {[%clk 0:01:48]} 23... Bxa4 {[%clk
0:00:08.3]} 24. Rxa4 {[%clk 0:01:41]} 24... Rxd2 {[%clk 0:00:06.6]} 25. Rxb4
{[%clk 0:01:41.3]} 25... Bd8 {[%clk 0:00:04.4]} 26. Rxc4 {[%clk 0:01:38.6]}
26... Ne5 {[%clk 0:00:05.3]} 27. Rc8 {[%clk 0:01:38.1]} 27... Kf8 {[%clk
0:00:04.1]} 28. b4 {[%clk 0:01:34.8]} 28... Ke7 {[%clk 0:00:05]} 29. Rb1 {[%clk
0:01:33.4]} 29... Bb6 {[%clk 0:00:05.4]} 30. Rb8 {[%clk 0:01:27.5]} 30... Bd4
{[%clk 0:00:05.4]} 31. Rb7+ {[%clk 0:01:27.3]} 31... Kf6 {[%clk 0:00:05.9]} 32.
e3 {[%clk 0:01:27]} 32... Bc3 {[%clk 0:00:06.9]} 33. b5 {[%clk 0:01:16]} 33...
Ng4 {[%clk 0:00:07.3]} 34. h3 {[%clk 0:01:07.5]} 34... Nxf2 {[%clk 0:00:07.9]}
35. Rf1 {[%clk 0:01:08]} 35... Ke5 {[%clk 0:00:08.2]} 36. Rxf2 {[%clk
0:01:08.3]} 1-0

[Event "*** Titled Tuesday Blitz"]
[Site "Chess.com"]
[Date "2019.07.02"]
[Round "6"]
[White "ckgchess"]
[Black "eldur16"]
[Result "1-0"]
[WhiteElo "2694"]
[BlackElo "2571"]
[TimeControl "180+2"]
[EndTime "14:21:40 PDT"]
[Termination "ckgchess won by resignation"]

1. e4 {[%clk 0:03:01.9]} 1... g6 {[%clk 0:03:00.7]} 2. d4 {[%clk 0:03:02.9]}
2... Bg7 {[%clk 0:03:01.5]} 3. Nc3 {[%clk 0:03:04.6]} 3... d6 {[%clk 0:03:02.5]}
4. f4 {[%clk 0:03:06]} 4... a6 {[%clk 0:03:03.4]} 5. Nf3 {[%clk 0:03:06.4]} 5...
b5 {[%clk 0:03:04.3]} 6. Bd3 {[%clk 0:03:08]} 6... Nd7 {[%clk 0:03:04.9]} 7. e5
{[%clk 0:03:08.8]} 7... c5 {[%clk 0:03:02.4]} 8. Be4 {[%clk 0:02:59.4]} 8... Rb8
{[%clk 0:03:01.2]} 9. Be3 {[%clk 0:03:01.1]} 9... cxd4 {[%clk 0:02:56]} 10. Nxd4
{[%clk 0:03:03]} 10... dxe5 {[%clk 0:02:55.3]} 11. Nc6 {[%clk 0:03:02.7]} 11...
Qc7 {[%clk 0:02:55.3]} 12. Nxb8 {[%clk 0:03:02.5]} 12... Qxb8 {[%clk 0:02:56.3]}
13. O-O {[%clk 0:02:45.2]} 13... Ngf6 {[%clk 0:02:56.4]} 14. Qf3 {[%clk
0:02:42.5]} 14... O-O {[%clk 0:02:51.3]} 15. Rad1 {[%clk 0:02:41.8]} 15... exf4
{[%clk 0:02:38.9]} 16. Bxf4 {[%clk 0:02:42.4]} 16... Qb6+ {[%clk 0:02:35]} 17.
Kh1 {[%clk 0:02:39.4]} 17... b4 {[%clk 0:02:34.9]} 18. Nd5 {[%clk 0:02:32.9]}
18... Nxd5 {[%clk 0:02:30.4]} 19. Bxd5 {[%clk 0:02:34.8]} 19... e6 {[%clk
0:02:15.5]} 20. Bb3 {[%clk 0:02:16.3]} 20... Bb7 {[%clk 0:02:12.1]} 21. Qe3
{[%clk 0:02:15.4]} 21... Qc6 {[%clk 0:01:51.4]} 22. Qe2 {[%clk 0:02:15.3]} 22...
Nc5 {[%clk 0:01:37]} 23. Rd6 {[%clk 0:02:13.5]} 23... Qc8 {[%clk 0:01:34]} 24.
Be5 {[%clk 0:02:03.9]} 24... Ne4 {[%clk 0:01:21.9]} 25. Bxg7 {[%clk 0:02:04.1]}
25... Kxg7 {[%clk 0:01:22.3]} 26. Rd4 {[%clk 0:02:03.9]} 26... Qc6 {[%clk
0:01:17]} 27. Rxb4 {[%clk 0:01:58.8]} 27... Rd8 {[%clk 0:01:00.3]} 28. Rc4
{[%clk 0:01:52.8]} 28... Qb5 {[%clk 0:00:53.1]} 29. Qf3 {[%clk 0:01:08.8]} 29...
f5 {[%clk 0:00:48.3]} 30. Rc7+ {[%clk 0:01:09]} 30... Rd7 {[%clk 0:00:43.2]} 31.
Rxd7+ {[%clk 0:01:05.9]} 31... Qxd7 {[%clk 0:00:43.4]} 32. Qd3 {[%clk 0:01:05]}
32... Qc6 {[%clk 0:00:42.3]} 33. Qe3 {[%clk 0:00:55.2]} 33... h5 {[%clk
0:00:36.2]} 34. c3 {[%clk 0:00:54.7]} 34... h4 {[%clk 0:00:36.1]} 35. Kg1 {[%clk
0:00:55.3]} 35... h3 {[%clk 0:00:29.8]} 36. gxh3 {[%clk 0:00:40.9]} 36... Nxc3
{[%clk 0:00:23.2]} 37. Qxc3+ {[%clk 0:00:41.5]} 1-0

[Event "*** Titled Tuesday Blitz"]
[Site "Chess.com"]
[Date "2019.07.02"]
[Round "6"]
[White "AbasovN"]
[Black "chessdjw"]
[Result "1-0"]
[WhiteElo "2884"]
[BlackElo "2714"]
[TimeControl "180+2"]
[EndTime "14:21:48 PDT"]
[Termination "AbasovN won by resignation"]

1. e4 {[%clk 0:03:01.9]} 1... e5 {[%clk 0:03:00.3]} 2. Nf3 {[%clk 0:03:02.6]}
2... Nc6 {[%clk 0:03:01.9]} 3. Bb5 {[%clk 0:03:03.6]} 3... a6 {[%clk 0:03:03.5]}
4. Bxc6 {[%clk 0:03:05]} 4... dxc6 {[%clk 0:03:04.2]} 5. O-O {[%clk 0:03:06.9]}
5... Bd6 {[%clk 0:03:04.4]} 6. d4 {[%clk 0:03:07.6]} 6... exd4 {[%clk
0:03:05.8]} 7. Qxd4 {[%clk 0:03:09.5]} 7... f6 {[%clk 0:03:07.1]} 8. Nbd2 {[%clk
0:03:09.8]} 8... Be6 {[%clk 0:03:06.6]} 9. b3 {[%clk 0:03:10.2]} 9... Ne7 {[%clk
0:02:57.7]} 10. Nc4 {[%clk 0:03:11]} 10... Bxc4 {[%clk 0:02:51.9]} 11. Qxc4
{[%clk 0:03:11.7]} 11... Qd7 {[%clk 0:02:53.4]} 12. Bb2 {[%clk 0:02:37.8]} 12...
O-O-O {[%clk 0:02:53.1]} 13. Rad1 {[%clk 0:02:39.1]} 13... Ng6 {[%clk
0:02:49.4]} 14. e5 {[%clk 0:02:37.7]} 14... fxe5 {[%clk 0:02:45.1]} 15. Nxe5
{[%clk 0:02:38.9]} 15... Qf5 {[%clk 0:02:08.4]} 16. Qg4 {[%clk 0:02:25.2]} 16...
Qxg4 {[%clk 0:02:05.2]} 17. Nxg4 {[%clk 0:02:27.1]} 17... Rd7 {[%clk 0:01:49.6]}
18. g3 {[%clk 0:02:27.2]} 18... Re8 {[%clk 0:01:47.3]} 19. Ne3 {[%clk
0:02:22.6]} 19... Rf7 {[%clk 0:01:33.9]} 20. Kg2 {[%clk 0:02:15.6]} 20... Ne5
{[%clk 0:01:28.6]} 21. Bxe5 {[%clk 0:02:12.5]} 21... Rxe5 {[%clk 0:01:27.3]} 22.
Nc4 {[%clk 0:02:08.4]} 22... Re6 {[%clk 0:01:17.1]} 23. Rfe1 {[%clk 0:02:09]}
23... Rfe7 {[%clk 0:01:11.2]} 24. Rxe6 {[%clk 0:01:39.9]} 24... Rxe6 {[%clk
0:01:13.1]} 25. Kf3 {[%clk 0:01:41.4]} 25... Bc5 {[%clk 0:01:10.3]} 26. Rd2
{[%clk 0:01:39.8]} 26... b5 {[%clk 0:01:10.7]} 27. Ne3 {[%clk 0:01:38.8]} 27...
Rf6+ {[%clk 0:00:51.6]} 28. Ke2 {[%clk 0:01:16.5]} 28... g5 {[%clk 0:00:51.8]}
29. Ng4 {[%clk 0:01:02]} 29... Re6+ {[%clk 0:00:52.5]} 30. Kf3 {[%clk
0:01:03.2]} 30... h5 {[%clk 0:00:52.6]} 31. Ne3 {[%clk 0:01:04.2]} 31... g4+
{[%clk 0:00:45.5]} 32. Kf4 {[%clk 0:01:04.3]} 32... Kb7 {[%clk 0:00:22.8]} 33.
c3 {[%clk 0:01:02.4]} 33... a5 {[%clk 0:00:23.3]} 34. Re2 {[%clk 0:00:51.2]}
34... Ka6 {[%clk 0:00:21.7]} 35. Kg5 {[%clk 0:00:50.6]} 35... Re5+ {[%clk
0:00:22.5]} 36. Kf6 {[%clk 0:00:51.2]} 36... Bd6 {[%clk 0:00:23.2]} 37. Rd2
{[%clk 0:00:49.8]} 37... a4 {[%clk 0:00:23.7]} 38. Nf5 {[%clk 0:00:47.3]} 38...
Bc5 {[%clk 0:00:23.3]} 39. Kxe5 {[%clk 0:00:47.9]} 1-0

[Event "*** Titled Tuesday Blitz"]
[Site "Chess.com"]
[Date "2019.07.02"]
[Round "6"]
[White "ozates"]
[Black "narutosmith"]
[Result "1-0"]
[WhiteElo "2323"]
[BlackElo "2210"]
[TimeControl "180+2"]
[EndTime "14:21:48 PDT"]
[Termination "ozates won on time"]

1. e4 {[%clk 0:03:01.9]} 1... e5 {[%clk 0:02:59.3]} 2. Nf3 {[%clk 0:03:01.3]}
2... Nc6 {[%clk 0:03:00.3]} 3. Bc4 {[%clk 0:03:02.6]} 3... Nf6 {[%clk
0:03:00.4]} 4. d3 {[%clk 0:03:03.4]} 4... Be7 {[%clk 0:03:00.8]} 5. O-O {[%clk
0:03:01.1]} 5... O-O {[%clk 0:03:00.2]} 6. Bb3 {[%clk 0:02:58.3]} 6... d6 {[%clk
0:02:58.4]} 7. c3 {[%clk 0:02:58]} 7... h6 {[%clk 0:02:40.6]} 8. Nbd2 {[%clk
0:02:58.4]} 8... Nh7 {[%clk 0:02:35.5]} 9. Re1 {[%clk 0:02:56.1]} 9... Kh8
{[%clk 0:02:34.9]} 10. Nc4 {[%clk 0:02:53.3]} 10... f5 {[%clk 0:02:34.8]} 11.
exf5 {[%clk 0:02:49.2]} 11... Bxf5 {[%clk 0:02:34.6]} 12. Ne3 {[%clk 0:02:50.7]}
12... Bd7 {[%clk 0:02:22.1]} 13. d4 {[%clk 0:02:49.2]} 13... Ng5 {[%clk
0:02:16.3]} 14. Nxg5 {[%clk 0:02:48.4]} 14... Bxg5 {[%clk 0:02:16.8]} 15. Bc2
{[%clk 0:02:28.3]} 15... Qf6 {[%clk 0:01:28.8]} 16. f3 {[%clk 0:02:20.9]} 16...
exd4 {[%clk 0:01:25.6]} 17. Nd5 {[%clk 0:02:12.2]} 17... Qd8 {[%clk 0:01:20.2]}
18. f4 {[%clk 0:02:02.4]} 18... Be7 {[%clk 0:01:09.1]} 19. Qh5 {[%clk
0:01:54.9]} 19... Be8 {[%clk 0:00:57.2]} 20. Qe2 {[%clk 0:01:50.3]} 20... Bf6
{[%clk 0:00:42.2]} 21. Qd3 {[%clk 0:01:41]} 21... g6 {[%clk 0:00:42.5]} 22. Qh3
{[%clk 0:01:05.5]} 22... Kg7 {[%clk 0:00:40.8]} 23. g4 {[%clk 0:01:05.9]} 23...
Rh8 {[%clk 0:00:29.1]} 24. Bd2 {[%clk 0:00:40.9]} 24... Bf7 {[%clk 0:00:27.5]}
25. c4 {[%clk 0:00:35.3]} 25... g5 {[%clk 0:00:17.6]} 26. Qd3 {[%clk 0:00:32.4]}
26... Nb8 {[%clk 0:00:04.8]} 27. fxg5 {[%clk 0:00:29.9]} 27... hxg5 {[%clk
0:00:03.1]} 28. Rf1 {[%clk 0:00:25.8]} 28... Nd7 {[%clk 0:00:03]} 29. Nxf6
{[%clk 0:00:21.6]} 1-0